fUST/lending_fUST_20240916
["ID","MTS","AMOUNT","RATE_DAILY","PERIOD"]
[338258919,1726450242223,-196.566366,0.00021917,2]
[338258920,1726450242232,-196.566366,0.00021917,2]
[338258921,1726450242242,-196.566366,0.00021917,2]
[338258922,1726450242251,-196.566366,0.00021917,2]
[338258923,1726450242260,-196.566366,0.00021917,2]
[338258924,1726450242270,-500.0,0.00021917,2]
[338258925,1726450242279,-196.566366,0.00021917,2]
[338258926,1726450242288,-1849.76,0.00021917,2]
[338258927,1726450242297,-196.566366,0.00021917,2]
[338258928,1726450242306,-196.566366,0.00021917,2]
[338258929,1726450242315,-1811.09,0.00021917,2]
[338258930,1726450242324,-196.566366,0.00021917,2]
[338258931,1726450242334,-500.0,0.00021917,2]
[338258932,1726450242342,-196.566366,0.00021917,2]
[338258933,1726450242351,-196.566366,0.00021917,2]
[338258934,1726450242362,-196.566366,0.00021917,2]
[338258935,1726450242371,-196.566366,0.00021917,2]
[338258936,1726450242381,-196.566366,0.00021917,2]
[338258937,1726450242390,-196.566366,0.00021917,2]
[338258938,1726450242399,-3669.47,0.00021917,2]
[338258939,1726450242408,-500.0,0.00021917,2]
[338258940,1726450242417,-804.82,0.00021917,2]
[338258941,1726450242427,-500.0,0.00021917,2]
[338258942,1726450242439,-500.0,0.00021917,2]
[338258943,1726450242449,-1233.57,0.00021917,2]
[338258944,1726450242459,-500.0,0.00021917,2]
[338258945,1726450242468,-500.0,0.00021917,2]
[338258946,1726450242478,-500.0,0.00021917,2]
[338258947,1726450242488,-729.79,0.00021917,2]
[338258948,1726450242497,-2303.34,0.00021917,2]
[338258949,1726450242506,-500.0,0.00021917,2]
[338258950,1726450242518,-624.91,0.00021917,2]
[338258951,1726450242527,-607.38,0.00021917,2]
[338258952,1726450242538,-4199.45,0.00021917,2]
[338258953,1726450242547,-500.0,0.00021917,2]
[338258954,1726450242556,-500.0,0.00021917,2]
[338258955,1726450242566,-527.75,0.00021917,2]
[338258956,1726450242575,-921.73,0.00021917,2]
[338258957,1726450242585,-1661.68,0.00021917,2]
[338258958,1726450242594,-611.89767157,0.00021917,2]
[338258959,1726450242604,-500.0,0.00021917,2]
[338258960,1726450242613,-674.15,0.00021917,2]
[338258961,1726450242623,-500.0,0.00021917,2]
[338258962,1726450242632,-500.0,0.00021917,2]
[338258963,1726450242641,-500.0,0.00021917,2]
[338258964,1726450242650,-1949.03,0.00021917,2]
[338258965,1726450242660,-692.95,0.00021917,2]
[338258966,1726450242669,-1287.61262732,0.00021917,2]
[338258970,1726450243178,-209.03737268,0.00021917,2]
[338258971,1726450243188,-500.0,0.00021917,2]
[338258972,1726450243197,-90.54732582,0.00021917,2]
[338258975,1726450243357,-1182.14267418,0.00021917,2]
[338258976,1726450243371,-500.0,0.00021917,2]
[338258977,1726450243380,-500.0,0.00021917,2]
[338258978,1726450243390,-500.0,0.00021917,2]
[338258980,1726450243399,-682.71,0.00021917,2]
[338258982,1726450243408,-500.0,0.00021917,2]
[338258984,1726450243417,-500.0,0.00021917,2]
[338258986,1726450243426,-500.0,0.00021917,2]
[338258988,1726450243439,-337.04379478,0.00021917,2]
[338258990,1726450243450,-658.07620522,0.00021917,2]
[338258991,1726450243458,-1341.92379478,0.00021917,2]
[338258992,1726450243953,-24900.0,0.00020205,2]
[338258993,1726450243962,-57.48620522,0.00021917,2]
[338258994,1726450243972,-500.0,0.00021917,2]
[338258995,1726450243981,-883.88,0.00021917,2]
[338258996,1726450243991,-1465.89,0.00021917,2]
[338258997,1726450244000,-795.54,0.00021917,2]
[338258998,1726450244010,-500.0,0.00021917,2]
[338258999,1726450244019,-500.0,0.00021917,2]
[338259000,1726450244028,-500.0,0.00021917,2]
[338259001,1726450244038,-511.33396354,0.00021917,2]
[338259002,1726450244047,-500.0,0.00021917,2]
[338259003,1726450244057,-2977.88,0.00021917,2]
[338259004,1726450244066,-500.0,0.00021917,2]
[338259005,1726450244075,-500.0,0.00021917,2]
[338259006,1726450244085,-2533.6,0.00021917,2]
[338259007,1726450244094,-500.0,0.00021917,2]
[338259008,1726450244102,-509.78290016,0.00021917,2]
[338259009,1726450244113,-500.0,0.00021917,2]
[338259010,1726450244122,-500.0,0.00021917,2]
[338259011,1726450244131,-167.07143253,0.00021917,2]
[338259064,1726450246762,-1820.38856747,0.00021917,2]
[338259066,1726450246778,-500.0,0.00021917,2]
[338259067,1726450246794,-500.0,0.00021917,2]
[338259068,1726450246810,-500.0,0.00021917,2]
[338259069,1726450246821,-500.0,0.00021917,2]
[338259070,1726450246834,-4362.67,0.00021917,2]
[338259071,1726450246847,-500.0,0.00021917,2]
[338259072,1726450246865,-500.0,0.00021917,2]
[338259073,1726450246879,-687.83,0.00021917,2]
[338259074,1726450246892,-500.0,0.00021917,2]
[338259075,1726450246906,-500.0,0.00021917,2]
[338259076,1726450246921,-623.6,0.00021917,2]
[338259077,1726450246935,-516.24,0.00021917,2]
[338259078,1726450246949,-500.0,0.00021917,2]
[338259079,1726450246961,-500.0,0.00021917,2]
[338259080,1726450246974,-500.0,0.00021917,2]
[338259081,1726450246989,-1046.27,0.00021917,2]
[338259082,1726450247002,-611.41,0.00021917,2]
[338259083,1726450247015,-500.0,0.00021917,2]
[338259084,1726450247026,-1472.13,0.00021917,2]
[338259085,1726450247038,-500.0,0.00021917,2]
[338259086,1726450247050,-500.0,0.00021917,2]
[338259087,1726450247065,-888.34,0.00021917,2]
[338259088,1726450247078,-500.0,0.00021917,2]
[338259089,1726450247092,-500.0,0.00021917,2]
[338259090,1726450247106,-1604.49,0.00021917,2]
[338259091,1726450247120,-575.15,0.00021917,2]
[338259092,1726450247134,-250.0,0.00021917,2]
[338259093,1726450247147,-767.54,0.00021917,2]
[338259094,1726450247159,-500.0,0.00021917,2]
[338259095,1726450247169,-783.99,0.00021917,2]
[338259096,1726450247180,-500.0,0.00021917,2]
[338259097,1726450247191,-151.0,0.00021917,2]
[338259098,1726450247204,-151.0,0.00021917,2]
[338259099,1726450247217,-231.510464,0.00021917,2]
[338259100,1726450247229,-500.0,0.00021917,2]
[338259101,1726450247239,-500.0,0.00021917,2]
[338259102,1726450247251,-560.15,0.00021917,2]
[338259103,1726450247263,-812.25,0.00021917,2]
[338259104,1726450247276,-1476.03,0.00021917,2]
[338259105,1726450247287,-500.0,0.00021917,2]
[338259106,1726450247298,-500.0,0.00021917,2]
[338259107,1726450247308,-722.28,0.00021917,2]
[338259108,1726450247320,-500.0,0.00021917,2]
[338259109,1726450247334,-624.83088116,0.00021917,2]
[338259110,1726450247345,-3451.89,0.00021917,2]
[338259111,1726450247358,-500.0,0.00021917,2]
[338259112,1726450247375,-1132.76,0.00021917,2]
[338259113,1726450247387,-1386.18,0.00021917,2]
[338259114,1726450247399,-500.0,0.00021917,2]
[338259115,1726450247410,-659.79,0.00021917,2]
[338259116,1726450247422,-538.97626689,0.00021917,2]
[338259117,1726450247434,-856.02,0.00021917,2]
[338259118,1726450247449,-151.0,0.00021917,2]
[338259119,1726450247460,-500.0,0.00021917,2]
[338259120,1726450247471,-500.0,0.00021917,2]
[338259121,1726450247483,-2112.85,0.00021917,2]
[338259122,1726450247495,-669.21,0.00021917,2]
[338259123,1726450247507,-500.0,0.00021917,2]
[338259124,1726450247519,-500.0,0.00021917,2]
[338259125,1726450247531,-500.0,0.00021917,2]
[338259126,1726450247542,-500.0,0.00021917,2]
[338259127,1726450247554,-500.0,0.00021917,2]
[338259128,1726450247565,-4906.73,0.00021917,2]
[338259129,1726450247576,-1224.93,0.00021917,2]
[338259130,1726450247589,-627.47,0.00021917,2]
[338259131,1726450247600,-500.0,0.00021917,2]
[338259132,1726450247613,-500.0,0.00021917,2]
[338259133,1726450247625,-500.0,0.00021917,2]
[338259134,1726450247636,-500.0,0.00021917,2]
[338259135,1726450247648,-500.0,0.00021917,2]
[338259136,1726450247659,-500.0,0.00021917,2]
[338259137,1726450247671,-500.0,0.00021917,2]
[338259138,1726450247683,-500.0,0.00021917,2]
[338259139,1726450247695,-500.0,0.00021917,2]
[338259140,1726450247706,-500.0,0.00021917,2]
[338259141,1726450247718,-443.34087869,0.00021917,2]
[338259142,1726450247730,-500.0,0.00021917,2]
[338259143,1726450247741,-500.0,0.00021917,2]
[338259144,1726450247753,-3855.9,0.00021917,2]
[338259145,1726450247764,-500.0,0.00021917,2]
[338259146,1726450247777,-500.0,0.00021917,2]
[338259147,1726450247788,-500.0,0.00021917,2]
[338259148,1726450247800,-1567.31,0.00021917,2]
[338259149,1726450247812,-500.0,0.00021917,2]
[338259150,1726450247823,-560.94394872,0.00021917,2]
[338259151,1726450247835,-500.0,0.00021917,2]
[338259152,1726450247846,-500.0,0.00021917,2]
[338259153,1726450247860,-500.0,0.00021917,2]
[338259154,1726450247872,-683.23,0.00021917,2]
[338259155,1726450247884,-500.0,0.00021917,2]
[338259156,1726450247896,-1051.11,0.00021917,2]
[338259157,1726450247909,-500.0,0.00021917,2]
[338259158,1726450247921,-592.95706008,0.00021917,2]
[338259159,1726450247932,-500.0,0.00021917,2]
[338259160,1726450247944,-151.0,0.00021917,2]
[338259161,1726450247956,-151.0,0.00021917,2]
[338259162,1726450247968,-209.40508,0.00021917,2]
[338259163,1726450247980,-1386.74,0.00021917,2]
[338259164,1726450247992,-500.0,0.00021917,2]
[338259165,1726450248003,-500.0,0.00021917,2]
[338259166,1726450248015,-2076.83,0.00021917,2]
[338259167,1726450248027,-500.0,0.00021917,2]
[338259168,1726450248039,-459.68574768,0.00021917,2]
[338259169,1726450248051,-500.0,0.00021917,2]
[338259170,1726450248063,-500.0,0.00021917,2]
[338259171,1726450248075,-500.0,0.00021917,2]
[338259172,1726450248087,-500.0,0.00021917,2]
[338259173,1726450248098,-1233.02,0.00021917,2]
[338259174,1726450248111,-1745.89,0.00021917,2]
[338259175,1726450248123,-500.0,0.00021917,2]
[338259176,1726450248134,-500.0,0.00021917,2]
[338259177,1726450248146,-170.25659252,0.00021917,2]
[338259178,1726450248157,-173.70229955,0.00021917,2]
[338259179,1726450331935,262.68928322,0.000141,2]
[338259180,1726450331958,263.0253157,0.000141,2]
[338259181,1726450331979,243.41876231,0.000141,2]
[338259182,1726450332000,206.42866457,0.000141,2]
[338259183,1726450332021,225.10511519,0.000141,2]
[338259184,1726450332042,198.27332854,0.000141,2]
[338259185,1726450332063,223.99532378,0.000141,2]
[338259186,1726450332089,6700.888875,0.000141,2]
[338259187,1726450344395,10000.0,0.00014,2]
[338259188,1726450360509,10000.0,0.00014,2]
[338259189,1726450366787,10000.0,0.00014,2]
[338259190,1726450373911,10000.0,0.00014,2]
[338259191,1726450380280,1253.75443591,0.00014,2]
[338259193,1726450484246,4100.0,0.00014,2]
[338259194,1726450484278,5900.0,0.00014,2]
[338259195,1726450490928,10000.0,0.00014,2]
[338259198,1726451283829,6100.0,0.00014,2]
[338259199,1726451291108,189.22039682,0.00014,2]
[338259200,1726451296333,-3900.0,0.00014,2]
[338259201,1726451297865,10000.0,0.00014,2]
[338259202,1726451304811,10000.0,0.00014,2]
[338259203,1726451323919,948.0,0.00014,2]
[338259204,1726451334071,-10000.0,0.00014,2]
[338259211,1726451349208,-165.8620889,0.00017839,2]
[338259212,1726451349233,-174.268771,0.0001811,2]
[338259213,1726451349256,-174.268771,0.00018244,2]
[338259214,1726451349280,-174.268771,0.00018379,2]
[338259215,1726451349303,-300.0,0.00018503,2]
[338259216,1726451349621,-300.0,0.00018503,2]
[338259217,1726451349646,-174.268771,0.00018514,2]
[338259218,1726451349669,-174.268771,0.00018649,2]
[338259219,1726451349692,-365.6979269,0.00018736,2]
[338259220,1726451350122,-24534.3020731,0.00018736,2]
[338259221,1726451350145,-174.268771,0.00018784,2]
[338259222,1726451350167,-98.51784668,0.00018918,2]
[338259223,1726451353117,-75.75092432,0.00018918,2]
[338259224,1726451353140,-174.268771,0.00019053,2]
[338259256,1726451432818,-153.0,0.00020137,2]
[338259258,1726451432829,-420.0,0.00020353,2]
[338259260,1726451432839,-153.0,0.00020941,2]
[338259263,1726451432851,-153.0,0.00021041,2]
[338259266,1726451432861,-153.0,0.00021096,2]
[338259269,1726451432872,-154.9980966,0.00021241,2]
[338259272,1726451432882,-153.0,0.000213,2]
[338259275,1726451432892,-421.2696832,0.00021378,2]
[338259278,1726451432901,-300.0,0.0002174,2]
[338259281,1726451432911,-153.131,0.00021741,2]
[338259284,1726451432921,-606.768,0.00021741,2]
[338259287,1726451432930,-181.976,0.00021741,2]
[338259290,1726451432940,-18630.96607212,0.00021741,2]
[338259352,1726451439089,-267.10292788,0.00021741,2]
[338259353,1726451439100,-150.19,0.00021741,2]
[338259354,1726451439109,-427.38374352,0.00021797,2]
[338259355,1726451439119,-183.747132,0.000218,2]
[338259356,1726451439129,-3000.0,0.00021817,2]
[338259357,1726451439138,-3933.06915817,0.00021817,2]
[338259358,1726451439147,-197.49962917,0.00021817,2]
[338259359,1726451439157,-187.34767303,0.00021817,2]
[338259360,1726451439166,-1310.11550886,0.00021817,2]
[338259361,1726451439175,-338.71,0.00021887,3]
[338259362,1726451439185,-169.36,0.00021887,3]
[338259363,1726451439194,-508.09,0.00021887,3]
[338259365,1726451439203,-500.0,0.00021896,2]
[338259367,1726451439213,-500.0,0.00021896,2]
[338259369,1726451439222,-500.0,0.00021896,2]
[338259371,1726451439231,-390.10075424,0.00021896,2]
[338259373,1726451439241,-370.43778964,0.00021896,2]
[338259375,1726451439250,-500.0,0.00021896,2]
[338259377,1726451439260,-500.0,0.00021896,2]
[338259378,1726451439269,-288.06878303,0.00021896,2]
[338259379,1726451439278,-21563.9076715,0.00021897,3]
[338259380,1726451439287,-150947.3537,0.00021897,3]
[338259381,1726451439296,-150.112233,0.000219,4]
[338259382,1726451439305,-150.112233,0.000219,3]
[338259383,1726451439315,-150.112233,0.000219,4]
[338259384,1726451439324,-150.112233,0.000219,2]
[338259385,1726451439333,-150.112233,0.000219,2]
[338259386,1726451439342,-150.112233,0.000219,3]
[338259387,1726451439352,-150.112233,0.000219,2]
[338259388,1726451439361,-150.112233,0.000219,4]
[338259389,1726451439371,-150.112233,0.000219,3]
[338259390,1726451439380,-204.419732,0.000219,2]
[338259391,1726451439388,-64691.7230144,0.00021907,3]
[338259392,1726451439398,-153.048739,0.00021907,2]
[338259393,1726451439407,-151.0,0.00021907,2]
[338259394,1726451439416,-151.0,0.00021907,2]
[338259395,1726451439425,-151.0,0.00021907,2]
[338259396,1726451439435,-151.0,0.00021907,2]
[338259397,1726451439444,-153.623268,0.00021907,2]
[338259398,1726451439453,-155.640179,0.00021907,2]
[338259399,1726451439463,-151.0,0.00021907,2]
[338259400,1726451439472,-151.0,0.00021907,2]
[338259401,1726451439482,-154.985555,0.00021907,2]
[338259402,1726451439491,-151.0,0.00021907,2]
[338259403,1726451439501,-465.981344,0.00021907,2]
[338259404,1726451439510,-151.0,0.00021907,2]
[338259405,1726451439519,-465.981344,0.00021907,2]
[338259406,1726451439528,-181.298404,0.00021907,2]
[338259407,1726451439538,-192.454541,0.00021907,2]
[338259408,1726451439547,-192.454541,0.00021907,2]
[338259409,1726451439556,-151.0,0.00021907,2]
[338259410,1726451439566,-171.29235,0.00021907,2]
[338259411,1726451439576,-151.0,0.00021907,2]
[338259412,1726451439585,-154.742121,0.00021907,2]
[338259413,1726451439594,-151.0,0.00021907,2]
[338259414,1726451439605,-151.0,0.00021907,2]
[338259415,1726451439614,-153.455611,0.00021907,2]
[338259416,1726451439623,-151.0,0.00021907,2]
[338259417,1726451439632,-385.20209361,0.00021916,2]
[338259418,1726451439642,-500.0,0.00021916,2]
[338259419,1726451439651,-355.36794026,0.00021916,2]
[338259420,1726451439661,-584.44536029,0.00021916,2]
[338259421,1726451439670,-226.43192469,0.00021916,2]
[338259422,1726451439680,-500.0,0.00021916,2]
[338259423,1726451439689,-298.73016036,0.00021916,2]
[338259424,1726451439698,-194.46911712,0.00021916,2]
[338259425,1726451439708,-500.0,0.00021916,2]
[338259426,1726451439716,-500.0,0.00021916,2]
[338259427,1726451439725,-500.0,0.00021916,2]
[338259428,1726451439735,-500.0,0.00021916,2]
[338259429,1726451439746,-160.96215098,0.00021916,2]
[338259430,1726451439755,-33935.09115292,0.00021917,5]
[338259431,1726451439765,-292.72930539,0.00021917,5]
[338259432,1726451439774,-501.57734008,0.00021917,2]
[338259433,1726451439784,-502.82367219,0.00021917,2]
[338259434,1726451439797,-501.82825991,0.00021917,2]
[338259435,1726451439806,-500.94906618,0.00021917,2]
[338259436,1726451439815,-501.91802449,0.00021917,2]
[338259437,1726451439825,-501.712433,0.00021917,2]
[338259438,1726451439834,-501.73847341,0.00021917,2]
[338259439,1726451439843,-501.83968391,0.00021917,2]
[338259440,1726451439859,-501.02801274,0.00021917,2]
[338259441,1726451439869,-501.81354063,0.00021917,2]
[338259442,1726451439879,-501.88076296,0.00021917,2]
[338259443,1726451439889,-399.48272554,0.00021917,2]
[338259444,1726451439898,-211.69222266,0.00021917,2]
[338259445,1726451439908,-500.68408855,0.00021917,2]
[338259446,1726451439918,-501.79142923,0.00021917,2]
[338259447,1726451439928,-567.42731503,0.00021917,2]
[338259448,1726451439938,-500.56444099,0.00021917,2]
[338259449,1726451439947,-500.93010751,0.00021917,2]
[338259450,1726451439956,-152.667966,0.00021917,2]
[338259451,1726451439965,-641.36353133,0.00021917,2]
[338259452,1726451439974,-582.32,0.00021917,2]
[338259453,1726451439984,-500.0,0.00021917,2]
[338259454,1726451439993,-605.59,0.00021917,2]
[338259455,1726451440003,-500.0,0.00021917,2]
[338259456,1726451440013,-500.0,0.00021917,2]
[338259457,1726451440022,-500.0,0.00021917,2]
[338259458,1726451440031,-500.0,0.00021917,2]
[338259459,1726451440041,-878.0,0.00021917,2]
[338259460,1726451440051,-646.0,0.00021917,2]
[338259461,1726451440060,-871.71,0.00021917,2]
[338259462,1726451440069,-1796.91,0.00021917,2]
[338259463,1726451440078,-500.0,0.00021917,2]
[338259464,1726451440088,-521.22,0.00021917,2]
[338259465,1726451440100,-193.67967,0.00021917,2]
[338259466,1726451440110,-500.0,0.00021917,2]
[338259467,1726451440119,-644.37,0.00021917,2]
[338259468,1726451440128,-805.05,0.00021917,2]
[338259469,1726451440138,-500.0,0.00021917,2]
[338259470,1726451440148,-500.0,0.00021917,2]
[338259471,1726451440157,-500.0,0.00021917,2]
[338259472,1726451440167,-1233.77,0.00021917,2]
[338259473,1726451440177,-625.0,0.00021917,2]
[338259474,1726451440186,-1106.36,0.00021917,2]
[338259475,1726451440196,-500.0,0.00021917,2]
[338259476,1726451440206,-527.89,0.00021917,2]
[338259477,1726451440216,-500.0,0.00021917,2]
[338259478,1726451440226,-500.0,0.00021917,2]
[338259479,1726451440236,-693.4,0.00021917,2]
[338259481,1726451440245,-654.53,0.00021917,2]
[338259482,1726451440255,-500.0,0.00021917,2]
[338259483,1726451440265,-500.0,0.00021917,2]
[338259484,1726451440274,-500.0,0.00021917,2]
[338259485,1726451440283,-884.41,0.00021917,2]
[338259486,1726451440292,-119.28700281,0.00021917,2]
[338259487,1726451440308,-380.71299719,0.00021917,2]
[338259488,1726451440318,-158.567405,0.00021917,2]
[338259489,1726451440327,-441.72850239,0.00021917,2]
[338259493,1726451440895,-58.27149761,0.00021917,2]
[338259494,1726451440905,-1466.11,0.00021917,2]
[338259495,1726451440915,-492.2964432,0.00021917,2]
[338259496,1726451440924,-500.0,0.00021917,2]
[338259497,1726451440934,-500.0,0.00021917,2]
[338259498,1726451440943,-500.0,0.00021917,2]
[338259499,1726451440953,-953.91,0.00021917,2]
[338259500,1726451440963,-500.0,0.00021917,2]
[338259501,1726451440972,-500.0,0.00021917,2]
[338259502,1726451440982,-500.0,0.00021917,2]
[338259503,1726451440992,-500.0,0.00021917,2]
[338259504,1726451441001,-500.0,0.00021917,2]
[338259505,1726451441011,-500.0,0.00021917,2]
[338259506,1726451441020,-500.0,0.00021917,2]
[338259507,1726451441030,-416.29961676,0.00021917,2]
[338259516,1726451443960,-243.01038324,0.00021917,2]
[338259517,1726451443970,-500.0,0.00021917,2]
[338259519,1726451443979,-512.46009983,0.00021917,2]
[338259521,1726451443988,-575.17101111,0.00021917,2]
[338259523,1726451443998,-1002.9,0.00021917,2]
[338259525,1726451444008,-250.0,0.00021917,2]
[338259527,1726451444017,-500.0,0.00021917,2]
[338259529,1726451444027,-500.0,0.00021917,2]
[338259531,1726451444036,-500.0,0.00021917,2]
[338259533,1726451444047,-500.0,0.00021917,2]
[338259535,1726451444056,-500.0,0.00021917,2]
[338259537,1726451444066,-500.0,0.00021917,2]
[338259539,1726451444077,-195.63837944,0.00021917,2]
[338259541,1726451444086,-537.08,0.00021917,2]
[338259543,1726451444097,-500.0,0.00021917,2]
[338259546,1726451444109,-500.0,0.00021917,2]
[338259548,1726451444119,-735.92,0.00021917,2]
[338259550,1726451444129,-1328.67,0.00021917,2]
[338259552,1726451444139,-632.55,0.00021917,2]
[338259554,1726451444148,-500.0,0.00021917,2]
[338259556,1726451444157,-500.0,0.00021917,2]
[338259558,1726451444167,-279.07131445,0.00021917,2]
[338259560,1726451444176,-500.0,0.00021917,2]
[338259562,1726451444186,-500.0,0.00021917,2]
[338259564,1726451444195,-500.0,0.00021917,2]
[338259566,1726451444205,-152.975474,0.00021917,2]
[338259568,1726451444215,-500.0,0.00021917,2]
[338259570,1726451444225,-500.0,0.00021917,2]
[338259572,1726451444234,-500.0,0.00021917,2]
[338259574,1726451444244,-108.01783938,0.00021917,2]
[338259639,1726452356367,-173.657384,0.00020477,2]
[338259640,1726452356388,-162.8291668,0.00020678,2]
[338259641,1726452356409,-39.11432708,0.00020768,2]
[338259642,1726452359866,-184.83236833,0.00020768,2]
[338259644,1726452393209,-219.16817902,0.00020768,2]
[338259645,1726452426178,-200.54837767,0.00020768,2]
[338259646,1726452434347,-99.45162233,0.00020768,2]
[338259647,1726452434371,-678.83929177,0.00020769,2]
[338259648,1726452434441,-454.83107723,0.00020769,2]
[338259649,1726452469945,-245.77078751,0.00020769,2]
[338259650,1726452475994,-455.64040453,0.00020769,2]
[338259682,1726452632049,-300.0,0.00020716,2]
[338259684,1726452632059,-42.422611,0.00020717,2]
[338259686,1726452632070,-697.52780866,0.00020717,2]
[338259687,1726452632118,-50.62671161,0.00020717,2]
[338259728,1726452638272,-50.53678636,0.00020717,2]
[338259775,1726452640093,-18.37683437,0.00020717,2]
[338259777,1726452640103,-1683.88567393,0.00020717,2]
[338259779,1726452640114,-23216.11432607,0.00020717,2]
[338259781,1726452640124,-173.657384,0.00021544,2]
[338259783,1726452640133,-373.96077558,0.0002171,2]
[338259784,1726452640143,-150.0,0.00021741,2]
[338259787,1726452640153,-524.0,0.00021741,2]
[338259788,1726452640163,-164.0,0.00021741,2]
[338259789,1726452640173,-3000.0,0.000218,2]
[338259790,1726452640183,-3000.0,0.0002181,2]
[338259791,1726452640192,-1179.10395801,0.00021817,2]
[338259792,1726452640202,-3000.0,0.0002182,2]
[338259793,1726452640211,-4894.33106,0.0002183,2]
[338259794,1726452640220,-169.35,0.00021887,3]
[338259795,1726452640230,-508.09,0.00021887,3]
[338259796,1726452640239,-9703.75845214,0.00021896,3]
[338259797,1726452640253,-9703.75845214,0.00021897,3]
[338259798,1726452640262,-58222.5507128,0.00021897,3]
[338259799,1726452640272,-150.112233,0.000219,3]
[338259800,1726452640281,-150.112233,0.000219,2]
[338259801,1726452640291,-150.112233,0.000219,5]
[338259802,1726452640301,-150.112233,0.000219,5]
[338259803,1726452640311,-150.112233,0.000219,4]
[338259804,1726452640321,-150.112233,0.000219,4]
[338259805,1726452640329,-150.112233,0.000219,3]
[338259806,1726452640339,-150.112233,0.000219,2]
[338259807,1726452640348,-150.112233,0.000219,4]
[338259808,1726452640358,-204.419732,0.000219,4]
[338259809,1726452640367,-208.4916004,0.000219,2]
[338259810,1726452640377,-198.67430923,0.00021906,2]
[338259811,1726452640387,-116445.101426,0.00021907,3]
[338259812,1726452640397,-153.048739,0.00021907,2]
[338259813,1726452640406,-152.667966,0.00021907,2]
[338259814,1726452640416,-151.0,0.00021907,2]
[338259815,1726452640425,-151.0,0.00021907,2]
[338259816,1726452640434,-151.0,0.00021907,2]
[338259817,1726452640444,-153.623268,0.00021907,2]
[338259818,1726452640453,-155.640179,0.00021907,2]
[338259819,1726452640463,-193.67967,0.00021907,2]
[338259820,1726452640473,-154.142779,0.00021907,2]
[338259821,1726452640482,-151.326755,0.00021907,2]
[338259822,1726452640491,-151.0,0.00021907,2]
[338259823,1726452640501,-151.0,0.00021907,2]
[338259824,1726452640510,-151.0,0.00021907,2]
[338259825,1726452640520,-462.24251234,0.00021916,2]
[338259826,1726452640529,-355.36794026,0.00021916,2]
[338259827,1726452640538,-500.0,0.00021916,2]
[338259828,1726452640548,-584.44536029,0.00021916,2]
[338259829,1726452640558,-226.43192469,0.00021916,2]
[338259830,1726452640567,-500.0,0.00021916,2]
[338259831,1726452640576,-298.73016036,0.00021916,2]
[338259832,1726452640586,-500.0,0.00021916,2]
[338259833,1726452640595,-500.0,0.00021916,2]
[338259834,1726452640604,-500.0,0.00021916,2]
[338259835,1726452640613,-500.0,0.00021916,2]
[338259836,1726452640622,-194.46911712,0.00021916,2]
[338259837,1726452640631,-160.96215098,0.00021916,2]
[338259838,1726452640641,-33935.09115292,0.00021917,5]
[338259839,1726452640650,-292.72930539,0.00021917,5]
[338259840,1726452640659,-311.17845954,0.00021917,2]
[338259841,1726452640669,-501.65421566,0.00021917,2]
[338259842,1726452640679,-500.0,0.00021917,2]
[338259843,1726452640688,-501.57734008,0.00021917,2]